bitfinex/quotes_SOLUSD_20220109
["timestamp","ask_amount","ask_price","bid_price","bid_amount"]
[1641772234063,0.26,141.02,140.84,128.12837781]
[1641772234064,0.26,141.02,140.89,35.4684]
[1641772234264,1.772,141.01,140.89,35.4684]
[1641772234467,0.26,141.0,140.89,35.7184]
[1641772234664,74.8211,141.01,140.9,50.66911597]
[1641772235067,74.8211,141.01,140.9,50.91911597]
[1641772235266,74.8211,141.01,140.92,10.6411]
[1641772235466,74.8211,141.01,140.93,28.06628382]
[1641772235867,74.8211,141.01,140.94,0.26]
[1641772236067,74.8211,141.01,140.93,28.06628382]
[1641772236468,0.26,141.0,140.94,0.26]
[1641772236866,74.5711,141.01,140.95,10.6394]
[1641772237068,24.3489,141.02,140.95,10.8894]
[1641772237867,24.3489,141.02,140.96,29.58394329]
[1641772238071,24.3489,141.02,140.96,40.22194329]
[1641772238268,0.25,141.02,140.96,40.22194329]
[1641772238466,23.8444,141.03,140.96,40.22194329]
[1641772239766,23.8444,141.03,140.96,29.58394329]
[1641772239967,3.0,141.02,140.9,35.4682]
[1641772240267,10.23,141.01,140.87,72.8014]
[1641772240467,1.772,141.0,140.89,3.0]
[1641772240668,26.5741,141.0,140.87,72.8014]
[1641772240866,26.8241,141.0,140.88,33.0836358]
[1641772241069,0.26,140.99,140.88,33.0836358]
[1641772241371,0.26,140.99,140.89,0.26]
[1641772241769,10.6434,140.98,140.9,10.6425]
[1641772241968,10.8934,140.98,140.91,25.85891734]
[1641772244671,0.26,140.97,140.91,25.85891734]
[1641772244874,10.9046,140.97,140.83,59.7469]
[1641772245072,10.23,140.96,140.84,3.26]
[1641772245272,35.125,140.96,140.84,3.26]
[1641772245472,35.375,140.96,140.82,391.35248292]
[1641772245674,4.774,140.95,140.82,391.35248292]
[1641772245875,20.8771,140.94,140.83,31.00885762]
[1641772246072,4.774,140.93,140.83,31.00885762]
[1641772246273,15.004,140.93,140.83,31.00885762]
[1641772246573,23.40374805,140.92,140.83,31.00885762]
[1641772246775,10.23,140.91,140.83,31.00885762]
[1641772246973,10.6502,140.89,140.83,31.00885762]
[1641772247472,10.9002,140.89,140.83,31.00885762]
[1641772248383,0.25,140.89,140.83,31.00885762]
[1641772248880,10.48,140.91,140.83,32.78968348]
[1641772249077,10.48,140.91,140.83,33.03968348]
[1641772249078,10.23,140.91,140.83,33.03968348]
[1641772249279,10.48,140.91,140.83,32.78968348]
[1641772249476,10.48,140.91,140.84,0.26]
[1641772249678,10.48,140.91,140.85,10.6466]
[1641772250477,10.48,140.91,140.86,31.34264035]
[1641772252381,0.26,140.9,140.86,31.34264035]
[1641772252808,10.48,140.91,140.86,31.34264035]
[1641772260420,0.26,140.9,140.86,31.34264035]
[1641772261022,0.26,140.92,140.86,31.34264035]
[1641772262027,3.26,140.94,140.86,31.34264035]
[1641772262524,109.2797,140.96,140.88,10.6445]
[1641772262723,10.23,140.97,140.87,0.26]
[1641772263023,10.23,141.0,140.89,1.78082586]
[1641772263424,10.23,141.0,140.9,22.9732754]
[1641772263923,10.23,141.0,140.9,25.00410126]
[1641772265025,10.23,141.0,140.93,28.23909255]
[1641772266027,10.23,141.0,140.87,76.1667]
[1641772266229,1.772,140.99,140.87,76.1667]
[1641772266428,2.282,140.99,140.88,3.26]
[1641772266629,0.51,140.99,140.88,3.26]
[1641772267030,0.26,140.99,140.89,29.94770051]
[1641772267833,10.9033,140.99,140.9,10.6431]
[1641772268032,11.1533,140.99,140.9,10.6431]
[1641772269136,0.51,140.99,140.92,10.6414]
[1641772269535,0.26,140.99,140.92,10.6414]
[1641772270036,0.26,140.99,140.93,28.00420892]
[1641772270835,0.26,140.99,140.93,38.89500892]
[1641772271671,34.067,141.01,140.93,38.89500892]
[1641772271872,23.4253,141.01,140.93,38.89500892]
[1641772272474,24.3703,141.03,140.94,0.26]
[1641772272677,3.7030883,141.06,140.94,0.26]
[1641772272874,3.7030883,141.06,140.95,1.78082586]
[1641772273070,3.7030883,141.06,140.96,28.90963798]
[1641772273272,10.23,141.07,140.96,28.90963798]
[1641772273471,3.0,141.06,140.96,30.94046384]
[1641772273873,3.0,141.06,140.98,10.6371]
[1641772274073,3.0,141.06,140.99,29.62987953]
[1641772274274,3.25,141.06,140.99,29.62987953]
[1641772274473,3.25,141.06,140.96,1.78082586]
[1641772274674,1.772,141.05,140.94,23.135]
[1641772274874,10.6405,141.02,140.93,12.42102586]
[1641772275076,10.6405,141.02,140.93,10.6402]
[1641772275274,10.8905,141.02,140.9,75.8685]
[1641772275475,31.81476499,141.01,140.9,75.8685]
[1641772275673,42.04476499,141.01,140.9,75.8685]
[1641772275874,42.29476499,141.01,140.9,75.8685]
[1641772276073,42.29476499,141.01,140.86,22.6377]
[1641772276273,26.2991,141.0,140.86,22.6377]
[1641772276474,48.7165,140.99,140.86,22.6377]
[1641772276672,101.5128,140.98,140.86,22.6377]
[1641772277074,13.23,140.97,140.87,25.48400646]
[1641772277477,10.6464,140.95,140.87,25.48400646]
[1641772277873,10.8964,140.95,140.87,25.48400646]
[1641772278476,0.25,140.95,140.87,36.12930646]
[1641772278675,0.25,140.95,140.87,27.26483232]
[1641772278974,0.26,140.96,140.87,25.48400646]
[1641772279674,0.26,140.96,140.87,27.26483232]
[1641772279875,10.905,140.96,140.87,36.12940646]
[1641772280074,10.905,140.96,140.87,25.48400646]
[1641772280375,22.909,140.96,140.87,25.48400646]
[1641772280575,3.0,140.95,140.87,25.48400646]
[1641772280974,3.25,140.95,140.87,25.48400646]
[1641772281474,10.6474,140.94,140.87,25.48400646]
[1641772281675,10.6474,140.94,140.85,74.6382]
[1641772281874,10.8974,140.94,140.85,74.8882]
[1641772282675,10.8974,140.94,140.86,26.18864848]
[1641772284679,0.26,140.93,140.86,26.18864848]
[1641772285079,0.26,140.93,140.87,10.6453]
[1641772285477,0.26,140.94,140.87,12.42612586]
[1641772285678,23.0,140.93,140.83,35.4856]
[1641772285881,24.774,140.93,140.84,1.78082586]
[1641772286078,10.6497,140.9,140.81,15.40347429]
[1641772286281,4.774,140.92,140.81,26.05267429]
[1641772286480,5.024,140.92,140.81,26.05267429]
[1641772286681,5.024,140.92,140.82,27.7400038]
[1641772286878,0.25,140.92,140.82,27.7400038]
[1641772287481,25.2699,140.93,140.82,27.7400038]
[1641772287678,46.1481,140.93,140.83,10.6481]
[1641772287881,44.3741,140.93,140.83,10.6481]
[1641772288382,44.3741,140.93,140.82,27.7400038]
[1641772288579,44.3741,140.93,140.84,10.6476]
[1641772288780,10.48,140.93,140.82,27.9900038]
[1641772288984,10.48,140.93,140.83,0.26]
[1641772290784,10.48,140.93,140.85,10.6469]
[1641772290988,10.48,140.93,140.85,26.76127826]
[1641772291286,12.254,140.93,140.85,26.76127826]
[1641772291687,21.1274,140.93,140.85,26.76127826]
[1641772292088,0.26,140.92,140.85,26.76127826]
[1641772292990,0.26,140.92,140.85,37.40817826]
[1641772294589,22.9004,140.95,140.85,37.40817826]
[1641772295889,22.9004,140.95,140.86,10.646]
[1641772296092,0.26,140.94,140.86,10.906]
[1641772296793,0.25,140.95,140.86,0.26]
[1641772296994,25.2378,140.96,140.9,31.25462759]
[1641772297193,0.25,140.96,140.9,31.25462759]
[1641772297600,77.2441,140.98,140.9,31.25462759]
[1641772297797,87.8877,140.98,140.9,31.25462759]
[1641772298396,0.26,140.97,140.9,31.25462759]
[1641772300699,0.26,140.97,140.86,22.7628]
[1641772300899,1.772,140.96,140.86,22.7628]
[1641772301309,2.022,140.96,140.86,22.7628]
[1641772301698,2.022,140.96,140.87,29.57738173]
[1641772302898,12.6672,140.96,140.87,40.22278173]
[1641772304502,22.8972,140.96,140.87,40.22278173]
[1641772304702,10.48,140.96,140.87,29.57738173]
[1641772304900,10.48,140.96,140.88,0.26]
[1641772305133,0.25,140.96,140.88,0.26]
[1641772305329,1.9929716,140.97,140.88,0.26]
[1641772305533,1.9929716,140.97,140.88,3.26]
[1641772305730,1.9929716,140.97,140.88,5.04082586]
[1641772305932,1.9929716,140.98,140.88,5.29082586]
[1641772306134,1.9929716,140.98,140.92,10.6416]
[1641772306435,1.9929716,140.98,140.92,26.70011315]
[1641772306633,2.2429716,140.98,140.92,26.70011315]
[1641772306834,0.25,140.98,140.92,26.70011315]
[1641772307032,2.022,140.99,140.92,26.70011315]
[1641772307233,0.25,140.99,140.92,26.70011315]
[1641772307435,12.4729716,141.0,140.92,26.70011315]
[1641772307836,1.9929716,140.99,140.92,26.70011315]
[1641772308037,2.2429716,140.99,140.92,26.70011315]
[1641772308438,0.25,140.99,140.92,26.70011315]
[1641772309137,23.1150716,141.0,140.92,26.70011315]
[1641772309840,1.9929716,140.99,140.92,26.70011315]
[1641772310038,2.5029716,140.99,140.92,26.70011315]
[1641772310237,13.1459716,140.99,140.91,10.6423]
[1641772310538,11.153,140.99,140.91,10.6423]
[1641772310740,11.153,140.99,140.89,10.6432]
[1641772311039,12.925,140.99,140.89,10.6432]
[1641772311238,12.925,140.99,140.9,29.15292704]
[1641772311441,14.9179716,140.99,140.9,29.15292704]
[1641772311939,3.0,140.98,140.85,2.00760973]
[1641772312139,10.6455,140.96,140.85,2.00760973]
[1641772312338,1.774,140.95,140.86,0.26]
[1641772312740,2.024,140.95,140.86,0.26]
[1641772312939,2.024,140.95,140.86,22.90713645]
[1641772313142,0.25,140.95,140.86,22.64713645]
[1641772313742,10.8958,140.95,140.87,10.6453]
[1641772313949,0.25,140.95,140.87,0.51]
[1641772314143,0.25,140.95,140.87,0.26]
[1641772315144,0.25,140.97,140.87,0.26]
[1641772315344,88.2224716,140.98,140.9,10.643]
[1641772315645,88.2224716,140.98,140.91,29.13252951]
[1641772315847,87.9724716,140.98,140.91,29.13252951]
[1641772316546,0.26,140.97,140.91,29.13252951]
[1641772320350,10.9044,140.97,140.89,10.6439]
[1641772320552,21.3844,140.97,140.87,10.6448]
[1641772320749,1.774,140.96,140.87,10.6448]
[1641772320951,2.024,140.96,140.87,10.6448]
[1641772321150,4.0169716,140.96,140.87,10.6448]
[1641772321554,4.0169716,140.96,140.87,42.30777528]
[1641772321853,12.6697,140.96,140.87,42.30777528]
[1641772322351,10.8957,140.96,140.88,10.6445]
[1641772322552,0.25,140.96,140.87,31.91297528]
[1641772322752,0.25,140.96,140.88,0.26]
[1641772322953,27.0585716,140.97,140.88,0.26]
[1641772323777,27.0585716,140.97,140.89,10.6439]
[1641772323978,25.0656,140.97,140.9,25.08926375]
[1641772324481,0.26,140.96,140.9,25.08926375]
[1641772324678,89.7443716,140.98,140.9,25.08926375]
[1641772324880,1.9929716,140.98,140.91,0.26]
[1641772325981,1.9929716,141.0,140.91,3.26]
[1641772326382,1.9929716,141.0,140.91,3.51]
[1641772326782,1.9929716,141.01,140.92,10.6414]
[1641772326983,1.9929716,141.01,140.93,30.19429024]
[1641772327384,1.9929716,141.01,140.93,30.44429024]
[1641772328081,1.9929716,141.01,140.93,40.82449024]
[1641772328283,12.6335716,141.02,140.93,40.57449024]
[1641772328482,14.6555716,141.02,140.93,29.93429024]
[1641772328882,1.9929716,141.0,140.93,29.93429024]
[1641772329287,2.2429716,141.0,140.93,29.93429024]
[1641772330887,0.25,141.0,140.93,29.93429024]
[1641772331087,12.8847716,141.01,140.93,29.93429024]
[1641772331488,2.2429716,141.01,140.93,40.82509024]
[1641772331688,1.9929716,141.0,140.93,40.82509024]
[1641772332491,26.2825716,141.02,140.94,0.26]
[1641772332689,26.2825716,141.02,140.96,24.41461598]
[1641772333290,26.5325716,141.02,140.96,24.41461598]
[1641772333492,0.26,141.01,140.96,24.41461598]
[1641772337000,1.9929716,141.02,140.96,24.41461598]
[1641772337200,1.9929716,141.02,140.97,3.26]
[1641772337599,1.9929716,141.02,140.97,3.51]
[1641772337800,1.9929716,141.02,140.97,5.29082586]
[1641772338000,1.9929716,141.09,140.97,5.36082586]
[1641772338201,1.9929716,141.09,141.03,10.6333]
[1641772338399,1.9929716,141.09,141.04,24.8400194]
[1641772338801,2.2429716,141.09,141.04,24.8400194]
[1641772339004,0.25,141.09,141.04,24.8400194]
[1641772339400,2.2429716,141.1,141.04,24.8400194]
[1641772340003,0.25,141.1,141.04,24.8400194]
[1641772340403,4.0149716,141.11,141.04,24.8400194]
[1641772340803,14.6492716,141.11,141.04,24.8400194]
[1641772341003,0.26,141.1,141.04,24.8400194]
[1641772341602,0.26,141.1,140.99,23.2156]
[1641772341802,24.2998,141.1,141.0,3.0]
[1641772342003,24.2998,141.1,140.99,23.2156]
[1641772342004,24.5498,141.1,140.99,23.2156]
[1641772342733,24.5498,141.1,141.0,30.89398511]
[1641772343037,35.1846,141.1,141.0,41.52888511]
[1641772343734,37.1775716,141.1,141.0,41.52888511]
[1641772345034,36.9175716,141.1,141.0,41.52888511]
[1641772345237,36.9175716,141.1,141.0,41.77888511]
[1641772345435,36.9175716,141.1,141.0,41.52888511]
[1641772346039,3.0,141.09,141.0,41.52888511]
[1641772346236,12.4086,141.08,141.0,30.89398511]
[1641772346438,12.6586,141.08,141.0,30.89398511]
[1641772347238,2.022,141.08,141.0,41.52958511]
[1641772347640,0.25,141.08,141.0,41.52958511]
[1641772347838,3.0,141.09,141.0,41.52958511]
[1641772348038,1.772,141.08,141.0,30.89398511]
[1641772348442,0.26,141.07,141.0,30.89398511]
[1641772350844,10.8865,141.08,141.0,30.89398511]
[1641772351045,0.25,141.08,141.0,41.52958511]
[1641772351543,13.8854,141.09,141.0,41.52958511]
[1641772351742,15.6574,141.09,141.0,41.52958511]
[1641772353148,31.02815045,141.09,141.0,41.52958511]
[1641772353346,10.23,141.08,140.97,73.8698]
[1641772353546,4.772,141.07,140.95,24.1787]
[1641772353780,15.002,141.07,140.95,24.1787]
[1641772353944,15.252,141.07,140.95,24.1787]
[1641772354145,15.252,141.07,140.94,22.5516]
[1641772354345,53.71410286,141.06,140.96,23.70709283]
[1641772354546,15.002,141.05,140.96,23.70709283]
[1641772354948,15.252,141.05,140.96,23.70709283]
[1641772355851,10.6406,141.02,140.96,23.70709283]
[1641772356052,10.8906,141.02,140.96,23.70709283]
[1641772357958,0.26,141.01,140.96,23.70709283]
[1641772361788,10.8906,141.02,140.96,23.70709283]
[1641772361987,0.25,141.02,140.96,23.70709283]
[1641772362384,10.8899,141.03,140.96,23.70709283]
[1641772362785,0.25,141.03,140.96,23.70709283]
[1641772363002,2.2429716,141.04,140.97,0.26]
[1641772363188,1.9929716,141.04,140.97,7.148]
[1641772363386,2.00421679,141.07,140.99,54.0]
[1641772363586,2.00421679,141.07,141.0,27.55561114]
[1641772363785,2.00421679,141.07,141.04,26.4991003]
[1641772363988,2.00421679,141.07,141.04,34.6931003]
[1641772364487,3.7030883,141.1,141.05,1.78082586]
[1641772364689,74.309,141.13,141.05,1.78082586]
[1641772364889,22.6337,141.14,141.05,1.78082586]
[1641772365487,22.8837,141.14,141.05,1.78082586]
[1641772365689,22.6337,141.14,141.05,1.78082586]
[1641772365888,22.6337,141.14,141.05,12.41262586]
[1641772366089,22.6337,141.14,141.05,12.66262586]
[1641772366587,22.6337,141.14,141.06,0.26]
[1641772366787,20.8617,141.14,141.06,0.26]
[1641772366987,20.8617,141.14,141.05,12.41262586]
[1641772366988,21.1117,141.14,141.05,12.41262586]
[1641772367193,21.1117,141.14,141.05,10.6318]
[1641772367388,0.26,141.13,141.04,26.4991003]
[1641772367587,5.03,141.13,141.04,26.4991003]
[1641772367987,5.28,141.13,141.04,26.4991003]
[1641772368389,2.28,141.13,141.04,26.4991003]
[1641772368796,12.9131,141.13,141.04,26.4991003]
[1641772371298,12.9131,141.13,141.0,98.8219]
[1641772371498,3.0,141.12,141.01,10.6341]
[1641772371698,10.6353,141.1,141.01,10.6341]
[1641772372198,10.8853,141.1,141.01,10.6341]
[1641772372399,10.8853,141.1,141.02,28.83992417]
[1641772372598,0.26,141.09,141.02,28.83992417]
[1641772376306,10.8853,141.1,141.02,28.83992417]
[1641772379909,0.26,141.09,141.02,28.83992417]
[1641772380339,0.25,141.1,141.03,0.26]
[1641772380640,0.25,141.11,141.03,0.26]
[1641772381038,0.25,141.13,141.03,0.26]
[1641772381440,0.26,141.13,141.03,0.26]
[1641772381843,0.26,141.13,141.03,10.8932]
[1641772382041,3.26,141.13,141.03,34.9762]
[1641772382642,1.772,141.14,141.03,34.9762]
[1641772382940,3.7030883,141.15,141.09,10.6275]
[1641772383140,3.7030883,141.15,141.09,17.2505]
[1641772383542,23.2186,141.18,141.09,17.2505]
[1641772383742,23.2186,141.18,141.1,25.01682604]
[1641772384545,1.77,141.19,141.1,25.01682604]
[1641772384744,1.77,141.19,141.1,35.64482604]
[1641772384942,10.23,141.2,141.11,0.26]
[1641772385342,10.23,141.2,141.1,25.01682604]
[1641772385544,10.23,141.2,141.11,0.26]
[1641772385743,10.23,141.2,141.1,25.01682604]
[1641772385944,10.48,141.2,141.1,25.01682604]
[1641772386747,21.1073,141.2,141.11,10.6273]
[1641772386944,21.1073,141.2,141.1,25.01682604]
[1641772387147,1.77,141.19,141.1,25.01682604]
[1641772387344,4.77,141.19,141.1,25.01682604]
[1641772387550,0.26,141.18,141.1,25.01682604]
[1641772387953,3.9530883,141.19,141.1,35.64492604]
[1641772388155,3.9530883,141.19,141.1,44.32992604]
[1641772388349,3.9530883,141.19,141.1,46.1107519]
[1641772388549,0.25,141.19,141.1,45.8607519]
[1641772388751,0.25,141.19,141.11,0.26]
[1641772388950,35.217,141.2,141.11,0.26]
[1641772389353,35.217,141.2,141.12,10.6263]
[1641772390451,10.48,141.2,141.13,0.26]
[1641772390853,10.48,141.2,141.1,103.9498519]
[1641772391055,10.48,141.2,141.11,3.26]
[1641772391552,21.1073,141.2,141.11,3.26]
[1641772391754,21.1073,141.2,141.1,102.16902604]
[1641772392353,0.26,141.19,141.12,10.6264]
[1641772394153,10.48,141.2,141.12,10.6264]
[1641772394353,0.26,141.19,141.12,10.6264]
[1641772395455,0.26,141.19,141.1,113.04642604]
[1641772395655,0.26,141.19,141.11,3.0]
[1641772395855,0.26,141.19,141.11,3.26]
[1641772396255,0.26,141.19,141.11,5.04082586]
[1641772396756,0.26,141.19,141.11,15.66782586]
[1641772396958,0.26,141.19,141.11,13.627]
[1641772397161,0.26,141.19,141.11,10.627]
[1641772397360,10.23,141.18,141.06,1.78082586]
[1641772397558,26.5051,141.17,141.04,34.7628]
[1641772397759,29.5051,141.17,141.05,27.9766]
[1641772397960,29.7551,141.17,141.05,27.9766]
[1641772398159,29.7551,141.17,141.06,31.05628281]
[1641772398561,29.7551,141.17,141.07,0.26]
[1641772398798,10.6313,141.15,141.07,0.26]
[1641772398962,10.8813,141.15,141.07,0.26]
[1641772399561,10.8813,141.15,141.07,3.26]
[1641772399959,10.8813,141.15,141.06,41.68728281]
[1641772400662,0.25,141.15,141.07,1.78082586]
[1641772401064,110.6349,141.17,141.08,10.6289]
[1641772401263,0.26,141.16,141.08,10.6289]
[1641772401462,0.26,141.16,141.08,12.40972586]
[1641772401863,0.26,141.16,141.08,10.6289]
[1641772402268,10.8901,141.16,141.07,24.6018]
[1641772402464,1.77,141.15,141.07,24.6018]
[1641772402866,2.02,141.15,141.07,24.6018]
[1641772403567,2.02,141.15,141.06,121.45848281]
[1641772403766,10.8813,141.15,141.06,121.45848281]
[1641772404367,0.25,141.15,141.07,10.8901]
[1641772404568,3.25,141.15,141.07,10.8901]
[1641772404971,0.26,141.14,141.07,10.6301]
[1641772405368,0.25,141.15,141.07,10.6301]
[1641772406071,0.26,141.16,141.06,110.82788281]
[1641772406304,1.77,141.15,141.06,110.82788281]
[1641772406470,3.26,141.16,141.06,110.82788281]
[1641772407569,0.26,141.16,141.06,110.82788281]
[1641772407870,12.4008,141.15,141.06,121.45878281]
[1641772408072,12.6508,141.15,141.06,121.45878281]
[1641772408271,10.8808,141.15,141.06,121.45878281]
[1641772409270,0.26,141.14,141.06,121.45878281]
[1641772409669,10.8917,141.14,141.06,121.45878281]
[1641772410074,11.1417,141.14,141.06,121.45878281]
[1641772410269,0.51,141.14,141.06,121.45878281]
[1641772410469,0.25,141.14,141.06,121.70878281]
[1641772410670,0.25,141.14,141.06,123.23960867]
[1641772410868,3.0,141.16,141.06,121.45878281]
[1641772411070,3.0,141.16,141.04,26.31362586]
[1641772411271,12.0,141.15,141.01,24.71002586]
[1641772411571,3.0,141.14,141.01,24.71002586]
[1641772411771,12.002,141.13,141.01,22.9292]
[1641772411973,23.4039,141.12,141.01,22.9292]
[1641772412173,10.6356,141.09,141.01,22.9292]
[1641772412574,10.8856,141.09,141.01,22.9292]
[1641772413073,0.26,141.08,140.99,77.48362586]
[1641772413274,5.032,141.08,140.99,77.48362586]
[1641772413476,10.6377,141.06,140.99,77.48362586]
[1641772413880,10.8877,141.06,140.99,77.48362586]
[1641772414282,0.25,141.06,140.99,77.48362586]
[1641772414986,5.362,141.06,140.96,12.41942586]
[1641772415183,1.772,141.05,140.96,1.78082586]
[1641772415386,4.772,141.05,140.96,1.78082586]
[1641772415686,15.252,141.05,140.96,1.78082586]
[1641772415884,15.252,141.05,140.96,33.40298923]
[1641772416084,25.8918,141.05,140.96,33.40298923]
[1641772416485,15.252,141.05,140.96,33.40298923]
[1641772416887,12.252,141.05,140.96,33.40298923]
[1641772417285,10.48,141.05,140.97,0.26]
[1641772417688,10.48,141.05,140.98,1.78082586]
[1641772418187,0.25,141.05,140.99,0.26]
[1641772418589,23.3047,141.07,140.99,2.04082586]
[1641772419389,1.772,141.09,140.99,8.59882586]
[1641772419588,1.772,141.13,141.0,13.67019415]
[1641772419789,1.772,141.13,141.0,36.20679415]
[1641772419995,13.7050883,141.14,141.06,10.6311]
[1641772420387,10.23,141.14,141.01,25.86572586]
[1641772420591,10.23,141.14,141.04,3.0]
[1641772420788,0.26,141.13,141.04,1.78082586]
[1641772420988,0.26,141.13,141.04,2.03082586]
[1641772421190,0.26,141.13,141.06,10.6311]
[1641772422205,0.26,141.13,141.07,24.72179904]
[1641772424306,2.03,141.13,141.07,24.72179904]
[1641772424507,2.28,141.13,141.07,24.72179904]
[1641772425308,0.51,141.13,141.07,24.72179904]
[1641772425707,0.26,141.13,141.07,30.09379904]
[1641772426110,10.48,141.14,141.07,30.09379904]
[1641772426407,0.25,141.14,141.08,0.26]
[1641772426608,19.1951885,141.16,141.07,31.8746249]
[1641772426810,27.6551885,141.16,141.08,1.78082586]
[1641772427008,27.6551885,141.16,141.03,1.78082586]
[1641772427009,1.77,141.15,141.03,1.78082586]
[1641772427308,4.77,141.15,141.03,1.78082586]
[1641772427908,37.7783,141.15,141.04,27.26859587]
[1641772428108,34.7783,141.15,141.04,27.26859587]
[1641772428311,34.7783,141.15,141.05,0.26]
[1641772428509,33.0083,141.15,141.05,0.26]
[1641772428708,33.0083,141.15,141.05,2.04082586]
[1641772429110,10.48,141.15,141.05,2.04082586]
[1641772429408,24.79108487,141.14,141.06,10.6305]
[1641772429610,1.77,141.13,141.04,102.98089587]
[1641772429810,10.23,141.13,141.05,0.26]
[1641772430011,10.48,141.13,141.04,102.98089587]
[1641772430911,10.48,141.13,141.05,10.6316]
[1641772431111,12.25,141.13,141.05,10.6316]
[1641772432011,12.25,141.13,141.04,102.98089587]
[1641772432211,12.25,141.13,141.04,27.26859587]
[1641772432411,12.25,141.13,141.03,10.6327]
[1641772432613,20.515,141.13,141.0,76.58102586]
[1641772432814,3.0,141.12,141.0,74.8002]
[1641772433012,12.002,141.11,141.0,74.8002]
[1641772433512,3.26,141.1,140.98,30.14220109]
[1641772433712,3.26,141.1,140.98,28.36137523]
[1641772433713,21.90113351,141.08,140.98,28.36137523]
[1641772433913,1.772,141.07,140.96,25.58222586]
[1641772434112,12.002,141.07,140.97,3.0]
[1641772434313,12.252,141.07,140.96,23.8014]
[1641772434711,12.252,141.07,140.97,1.78082586]
[1641772434913,10.48,141.07,140.97,1.78082586]
[1641772435414,10.48,141.07,140.98,0.26]
[1641772435611,10.48,141.07,140.98,23.70038075]
[1641772436014,10.48,141.07,140.98,23.44038075]
[1641772436617,1.772,141.06,140.98,23.44038075]
[1641772437019,2.022,141.06,140.98,23.44038075]
[1641772437217,0.26,141.05,140.98,23.44038075]
[1641772437822,0.25,141.06,140.98,23.44038075]
[1641772438022,0.26,141.06,140.98,23.44038075]
[1641772439125,3.26,141.06,140.98,23.44038075]
[1641772439524,3.51,141.06,140.98,23.44038075]
[1641772440325,5.022,141.06,140.98,23.44038075]
[1641772440627,5.022,141.06,140.99,0.26]
[1641772440926,3.25,141.06,140.98,23.44038075]
[1641772441525,0.26,141.05,140.98,23.44038075]
[1641772441927,0.26,141.05,140.98,34.07738075]
[1641772442328,10.48,141.07,140.98,34.07738075]
[1641772442627,10.23,141.07,140.99,0.26]
[1641772442827,24.1985,141.09,141.02,10.634]
[1641772443028,10.23,141.11,141.03,0.26]
[1641772443428,10.23,141.11,141.01,0.26]
[1641772443630,9.73,141.11,141.01,3.26]
[1641772443836,9.73,141.11,141.01,5.04082586]
[1641772444030,0.26,141.1,141.01,5.29082586]
[1641772444231,0.26,141.1,141.01,5.04082586]
[1641772444531,73.6143,141.12,141.01,5.04082586]
[1641772444730,75.3863,141.12,141.01,4.78082586]
[1641772445130,0.26,141.11,141.01,3.0]
[1641772445930,0.26,141.11,141.02,10.6334]
[1641772446131,73.6143,141.12,141.02,10.6334]
[1641772447235,18.71900448,141.1,140.99,101.93862586]
[1641772447433,1.772,141.09,140.99,101.93862586]
[1641772447657,1.772,141.09,140.99,100.1578]
[1641772447859,2.022,141.09,140.99,100.1578]
[1641772449763,10.23,141.08,140.99,100.1578]
[1641772449963,10.48,141.08,140.99,100.1578]
[1641772450164,10.48,141.08,140.98,23.44038075]
[1641772450364,4.772,141.07,140.94,1.78082586]
[1641772450563,10.23,141.06,140.97,3.0]
[1641772450766,1.772,141.05,140.97,3.0]
[1641772450964,12.252,141.05,140.94,1.78082586]
[1641772451364,27.7132139,141.04,140.95,10.6393]
[1641772451666,27.9632139,141.04,140.95,10.6393]